[Event "*** Titled Tuesday 3|2 Blitz"]
[Site "Chess.com"]
[Date "2015.11.03"]
[Round "6"]
[White "WanderingPuppet"]
[Black "chesstatour"]
[Result "1-0"]
[WhiteElo "2163"]
[BlackElo "1925"]
[TimeControl "180+2"]
[EndTime "18:14:54 PST"]
[Termination "WanderingPuppet won by resignation"]

1. e4 {[%clk 0:03:01.9]} 1... c6 {[%clk 0:02:54]} 2. Nc3 {[%clk 0:03:02.5]} 2...
d5 {[%clk 0:02:55.9]} 3. Nf3 {[%clk 0:03:04]} 3... dxe4 {[%clk 0:02:56.2]} 4.
Nxe4 {[%clk 0:03:05.9]} 4... Nf6 {[%clk 0:02:56.4]} 5. Nxf6+ {[%clk 0:03:05.3]}
5... gxf6 {[%clk 0:02:58.3]} 6. Bc4 {[%clk 0:03:05.5]} 6... Bf5 {[%clk
0:02:55.3]} 7. d3 {[%clk 0:02:54.3]} 7... e6 {[%clk 0:02:54.9]} 8. Nh4 {[%clk
0:02:50.1]} 8... Bg6 {[%clk 0:02:54.8]} 9. Qf3 {[%clk 0:02:42.6]} 9... Nd7
{[%clk 0:02:39.4]} 10. Nxg6 {[%clk 0:02:24.8]} 10... hxg6 {[%clk 0:02:41.3]} 11.
Bb3 {[%clk 0:02:22.9]} 11... Bd6 {[%clk 0:02:19.1]} 12. h3 {[%clk 0:02:23.3]}
12... Qa5+ {[%clk 0:02:08]} 13. Kf1 {[%clk 0:02:13.7]} 13... O-O-O {[%clk
0:01:46.4]} 14. Qe2 {[%clk 0:02:00.5]} 14... g5 {[%clk 0:01:37.9]} 15. Be3
{[%clk 0:01:52.4]} 15... Ne5 {[%clk 0:01:15.3]} 16. d4 {[%clk 0:01:37.8]} 16...
Ng6 {[%clk 0:01:11.7]} 17. c3 {[%clk 0:01:22.3]} 17... Bf4 {[%clk 0:01:08.3]}
18. g3 {[%clk 0:01:20.8]} 18... Bxe3 {[%clk 0:01:00.7]} 19. Qxe3 {[%clk
0:01:22.3]} 19... Rd7 {[%clk 0:00:51.8]} 20. Kg2 {[%clk 0:01:21.2]} 20... Rg8
{[%clk 0:00:46.8]} 21. Rae1 {[%clk 0:01:12.5]} 21... Qf5 {[%clk 0:00:27.2]} 22.
Kf1 {[%clk 0:01:01.9]} 22... Rh8 {[%clk 0:00:21.1]} 23. Kg2 {[%clk 0:00:49.7]}
23... Rdd8 {[%clk 0:00:17.5]} 24. Qe4 {[%clk 0:00:35.6]} 24... Qxe4+ {[%clk
0:00:11.1]} 25. Rxe4 {[%clk 0:00:37.5]} 25... f5 {[%clk 0:00:12.5]} 26. Re2
{[%clk 0:00:30.2]} 26... f4 {[%clk 0:00:13.6]} 27. Kf3 {[%clk 0:00:26.7]} 27...
Rh7 {[%clk 0:00:12.9]} 28. Kg4 {[%clk 0:00:23.2]} 28... fxg3 {[%clk 0:00:08.3]}
29. fxg3 {[%clk 0:00:23.1]} 29... Ne7 {[%clk 0:00:09.4]} 30. Bc2 {[%clk
0:00:15.6]} 30... Rg7 {[%clk 0:00:09.4]} 31. Kf3 {[%clk 0:00:13.6]} 31... Kd7
{[%clk 0:00:09.2]} 32. Rhe1 {[%clk 0:00:10.8]} 32... Re8 {[%clk 0:00:10.4]} 33.
a3 {[%clk 0:00:12]} 33... Nf5 {[%clk 0:00:10.3]} 34. Bxf5 {[%clk 0:00:12.9]}
34... Rh8 {[%clk 0:00:07.9]} 35. Bd3 {[%clk 0:00:07.3]} 35... Rxh3 {[%clk
0:00:08.5]} 36. Rg2 {[%clk 0:00:07.5]} 36... f5 {[%clk 0:00:07.9]} 37. Kf2
{[%clk 0:00:09.1]} 37... g4 {[%clk 0:00:08.1]} 38. Reg1 {[%clk 0:00:08.7]} 38...
Rgh7 {[%clk 0:00:09.5]} 39. Re1 {[%clk 0:00:07.7]} 39... Kd6 {[%clk 0:00:09.3]}
40. c4 {[%clk 0:00:08.4]} 40... b6 {[%clk 0:00:10.2]} 41. b4 {[%clk 0:00:08.7]}
41... a5 {[%clk 0:00:10.7]} 42. bxa5 {[%clk 0:00:09.3]} 42... bxa5 {[%clk
0:00:12.6]} 43. Rb1 {[%clk 0:00:10.7]} 43... Rh2 {[%clk 0:00:11.1]} 44. Rb6
{[%clk 0:00:10.9]} 44... Rxg2+ {[%clk 0:00:11.7]} 45. Kxg2 {[%clk 0:00:12.1]}
45... Rc7 {[%clk 0:00:10.7]} 46. Ra6 {[%clk 0:00:11.5]} 46... e5 {[%clk
0:00:10.2]} 47. dxe5+ {[%clk 0:00:10.3]} 47... Kxe5 {[%clk 0:00:12.1]} 48. Be2
{[%clk 0:00:09.9]} 48... Kd4 {[%clk 0:00:11.1]} 49. Rxa5 {[%clk 0:00:10.8]}
49... Ke3 {[%clk 0:00:12.4]} 50. Re5+ {[%clk 0:00:09.6]} 50... Kd4 {[%clk
0:00:12.7]} 51. Rxf5 {[%clk 0:00:10.5]} 51... Ra7 {[%clk 0:00:13.1]} 52. Rf4+
{[%clk 0:00:08.8]} 52... Ke3 {[%clk 0:00:14]} 53. Bxg4 {[%clk 0:00:09.5]} 53...
Rb7 {[%clk 0:00:10.9]} 54. Bf5 {[%clk 0:00:07.3]} 54... Rb2+ {[%clk 0:00:10.6]}
55. Kh3 {[%clk 0:00:08.3]} 55... Rb3 {[%clk 0:00:09.8]} 56. Kg4 {[%clk
0:00:09.2]} 56... Rb2 {[%clk 0:00:07.7]} 57. Rf3+ {[%clk 0:00:08.3]} 57... Kd4
{[%clk 0:00:08.5]} 58. Be6 {[%clk 0:00:09]} 58... Rb8 {[%clk 0:00:07.2]} 59. Bf7
{[%clk 0:00:09.7]} 59... c5 {[%clk 0:00:07]} 60. Bd5 {[%clk 0:00:08]} 60... Rd8
{[%clk 0:00:04.3]} 61. Rf4+ {[%clk 0:00:08.5]} 61... Ke5 {[%clk 0:00:04.9]} 62.
Rf5+ {[%clk 0:00:09.1]} 62... Kd4 {[%clk 0:00:06.5]} 63. Kf3 {[%clk 0:00:09.2]}
63... Rd7 {[%clk 0:00:06.2]} 64. Rf4+ {[%clk 0:00:10.3]} 64... Ke5 {[%clk
0:00:04.2]} 65. Re4+ {[%clk 0:00:11.7]} 65... Kf6 {[%clk 0:00:05.4]} 66. Re3
{[%clk 0:00:12.7]} 66... Ra7 {[%clk 0:00:05.2]} 67. g4 {[%clk 0:00:11.9]} 67...
Kg5 {[%clk 0:00:05.6]} 68. Re5+ {[%clk 0:00:13]} 68... Kf6 {[%clk 0:00:06.5]}
69. Re6+ {[%clk 0:00:12.1]} 69... Kg5 {[%clk 0:00:07.8]} 70. Re3 {[%clk
0:00:12.8]} 70... Kf6 {[%clk 0:00:08.8]} 71. Kf4 {[%clk 0:00:13.2]} 71... Kg7
{[%clk 0:00:07.3]} 72. g5 {[%clk 0:00:14.2]} 72... Rd7 {[%clk 0:00:06.9]} 73.
Kf5 {[%clk 0:00:15.2]} 73... Rd8 {[%clk 0:00:07.6]} 74. g6 {[%clk 0:00:15.4]}
74... Rf8+ {[%clk 0:00:07.7]} 75. Kg5 {[%clk 0:00:16.6]} 75... Re8 {[%clk
0:00:06.9]} 76. Rf3 {[%clk 0:00:10.1]} 76... Re5+ {[%clk 0:00:06.5]} 77. Rf5
{[%clk 0:00:10.7]} 77... Re8 {[%clk 0:00:03.7]} 78. Rf7+ {[%clk 0:00:11.4]}
78... Kh8 {[%clk 0:00:04.3]} 79. g7+ {[%clk 0:00:11.3]} 79... Kh7 {[%clk
0:00:05.7]} 80. g8=Q+ {[%clk 0:00:09]} 80... Kxg8 {[%clk 0:00:06.6]} 81. Re7+
{[%clk 0:00:09.6]} 81... Kf8 {[%clk 0:00:07.3]} 82. Rxe8+ {[%clk 0:00:10.8]}
82... Kxe8 {[%clk 0:00:09.1]} 83. Kf5 {[%clk 0:00:12.1]} 83... Kd7 {[%clk
0:00:11]} 84. Ke5 {[%clk 0:00:13.5]} 84... Kc7 {[%clk 0:00:12.6]} 85. Ke6 {[%clk
0:00:14.7]} 85... Kb6 {[%clk 0:00:14.5]} 86. Kd6 {[%clk 0:00:16]} 1-0

[Event "*** Titled Tuesday 3|2 Blitz"]
[Site "Chess.com"]
[Date "2015.11.03"]
[Round "6"]
[White "Shivagami"]
[Black "Tesla17"]
[Result "1/2-1/2"]
[WhiteElo "1781"]
[BlackElo "2202"]
[TimeControl "180+2"]
[EndTime "18:15:00 PST"]
[Termination "Game drawn - insufficient material"]

1. Nc3 {[%clk 0:03:01.9]} 1... Nf6 {[%clk 0:02:54.3]} 2. d4 {[%clk 0:03:01.8]}
2... d5 {[%clk 0:02:54.3]} 3. Bg5 {[%clk 0:03:01.4]} 3... h6 {[%clk 0:02:52.3]}
4. Bh4 {[%clk 0:03:00.7]} 4... c6 {[%clk 0:02:51.1]} 5. Nf3 {[%clk 0:02:58.3]}
5... Bf5 {[%clk 0:02:51.2]} 6. e3 {[%clk 0:02:57.5]} 6... Nbd7 {[%clk
0:02:52.3]} 7. Bd3 {[%clk 0:02:57.1]} 7... Bxd3 {[%clk 0:02:48.5]} 8. Qxd3
{[%clk 0:02:56.9]} 8... Qb6 {[%clk 0:02:49.9]} 9. O-O-O {[%clk 0:02:56.5]} 9...
e6 {[%clk 0:02:49.7]} 10. e4 {[%clk 0:02:50.2]} 10... dxe4 {[%clk 0:02:45.3]}
11. Nxe4 {[%clk 0:02:50.6]} 11... O-O-O {[%clk 0:02:43]} 12. Rhe1 {[%clk
0:02:38.5]} 12... Qa5 {[%clk 0:02:43.1]} 13. Kb1 {[%clk 0:02:36.6]} 13... Be7
{[%clk 0:02:39.2]} 14. Qe3 {[%clk 0:02:28.5]} 14... Nd5 {[%clk 0:02:35.8]} 15.
Qb3 {[%clk 0:02:26]} 15... N7f6 {[%clk 0:02:33.8]} 16. Bxf6 {[%clk 0:02:17.1]}
16... gxf6 {[%clk 0:02:33.6]} 17. Nfd2 {[%clk 0:02:15.8]} 17... f5 {[%clk
0:02:34]} 18. Nc4 {[%clk 0:02:11.5]} 18... Qb5 {[%clk 0:02:26.1]} 19. Ned2
{[%clk 0:02:04.9]} 19... Qxb3 {[%clk 0:02:23.7]} 20. Nxb3 {[%clk 0:02:05.3]}
20... Bf6 {[%clk 0:02:23.5]} 21. Ne5 {[%clk 0:02:01.3]} 21... Bxe5 {[%clk
0:02:18.6]} 22. dxe5 {[%clk 0:02:00.3]} 22... b6 {[%clk 0:02:09.9]} 23. Nd4
{[%clk 0:01:58.5]} 23... Kc7 {[%clk 0:02:10.5]} 24. Rd3 {[%clk 0:01:57.6]} 24...
a6 {[%clk 0:02:05.1]} 25. Ne2 {[%clk 0:01:31.2]} 25... h5 {[%clk 0:01:59.1]} 26.
a3 {[%clk 0:01:28.3]} 26... h4 {[%clk 0:01:57.5]} 27. h3 {[%clk 0:01:28.7]}
27... Rhg8 {[%clk 0:01:57.2]} 28. g3 {[%clk 0:01:28.2]} 28... c5 {[%clk
0:01:48.1]} 29. c4 {[%clk 0:01:21.3]} 29... Ne7 {[%clk 0:01:46.5]} 30. Red1
{[%clk 0:01:19.3]} 30... Rxd3 {[%clk 0:01:43.1]} 31. Rxd3 {[%clk 0:01:20]} 31...
Nc6 {[%clk 0:01:44.7]} 32. Re3 {[%clk 0:01:19.1]} 32... Rd8 {[%clk 0:01:33]} 33.
f4 {[%clk 0:01:02.1]} 33... hxg3 {[%clk 0:01:20.9]} 34. Rxg3 {[%clk 0:01:01.9]}
34... Rd2 {[%clk 0:01:19.9]} 35. Nc3 {[%clk 0:00:53.9]} 35... Kd7 {[%clk
0:01:16.2]} 36. Rg7 {[%clk 0:00:51.1]} 36... Ke7 {[%clk 0:01:10.8]} 37. h4
{[%clk 0:00:50.7]} 37... Rh2 {[%clk 0:01:09.7]} 38. Rh7 {[%clk 0:00:51.3]} 38...
Nd4 {[%clk 0:01:10.5]} 39. Rh8 {[%clk 0:00:44.7]} 39... Rh1+ {[%clk 0:01:06.6]}
40. Ka2 {[%clk 0:00:44.7]} 40... Rf1 {[%clk 0:00:47]} 41. h5 {[%clk 0:00:43.8]}
41... Rxf4 {[%clk 0:00:47.3]} 42. h6 {[%clk 0:00:45]} 42... Rh4 {[%clk
0:00:47.8]} 43. h7 {[%clk 0:00:46]} 43... Rh2 {[%clk 0:00:36.9]} 44. a4 {[%clk
0:00:28.9]} 44... Nf3 {[%clk 0:00:37.1]} 45. Rb8 {[%clk 0:00:16.3]} 45... Rxh7
{[%clk 0:00:37]} 46. Rxb6 {[%clk 0:00:17.7]} 46... Nd4 {[%clk 0:00:36.4]} 47.
Rxa6 {[%clk 0:00:13.2]} 47... Rh8 {[%clk 0:00:34.9]} 48. Ra7+ {[%clk 0:00:14.7]}
48... Kf8 {[%clk 0:00:32.8]} 49. Ra8+ {[%clk 0:00:16.1]} 49... Kg7 {[%clk
0:00:34.3]} 50. Rxh8 {[%clk 0:00:18]} 50... Kxh8 {[%clk 0:00:35.3]} 51. a5
{[%clk 0:00:19.7]} 51... Nc6 {[%clk 0:00:35.8]} 52. a6 {[%clk 0:00:21.1]} 52...
f4 {[%clk 0:00:36.3]} 53. Ne4 {[%clk 0:00:22]} 53... f3 {[%clk 0:00:35.4]} 54.
Kb1 {[%clk 0:00:21.4]} 54... Kg7 {[%clk 0:00:33.5]} 55. Kc1 {[%clk 0:00:22.7]}
55... Kg6 {[%clk 0:00:34.6]} 56. Kd2 {[%clk 0:00:23.4]} 56... Kf5 {[%clk
0:00:35.2]} 57. Ke3 {[%clk 0:00:24.6]} 57... Kxe5 {[%clk 0:00:34.2]} 58. Nxc5
{[%clk 0:00:25.2]} 58... f5 {[%clk 0:00:32.6]} 59. Nd3+ {[%clk 0:00:26.5]} 59...
Kd6 {[%clk 0:00:33.2]} 60. b4 {[%clk 0:00:28]} 60... e5 {[%clk 0:00:31.7]} 61.
b5 {[%clk 0:00:25.6]} 61... e4 {[%clk 0:00:22.2]} 62. Nf4 {[%clk 0:00:18.7]}
62... Ne5 {[%clk 0:00:18.4]} 63. c5+ {[%clk 0:00:13.5]} 63... Kxc5 {[%clk
0:00:17.6]} 64. a7 {[%clk 0:00:13.8]} 64... Nc4+ {[%clk 0:00:18.4]} 65. Kf2
{[%clk 0:00:14.4]} 65... Nb6 {[%clk 0:00:19.2]} 66. Ne6+ {[%clk 0:00:15.6]}
66... Kxb5 {[%clk 0:00:20]} 67. Nd4+ {[%clk 0:00:17.1]} 67... Ka6 {[%clk
0:00:20]} 68. Nxf5 {[%clk 0:00:19]} 68... Kxa7 {[%clk 0:00:20.1]} 69. Ng3 {[%clk
0:00:20.9]} 69... Nd5 {[%clk 0:00:12.6]} 70. Nxe4 {[%clk 0:00:22.5]} 70... Nf4
{[%clk 0:00:10.7]} 71. Kxf3 {[%clk 0:00:23.8]} 1/2-1/2

[Event "*** Titled Tuesday 3|2 Blitz"]
[Site "Chess.com"]
[Date "2015.11.03"]
[Round "7"]
[White "wanyaland"]
[Black "Dlugy"]
[Result "0-1"]
[WhiteElo "2248"]
[BlackElo "2584"]
[TimeControl "180+2"]
[EndTime "18:18:16 PST"]
[Termination "Dlugy won by resignation"]

1. d4 {[%clk 0:03:01.9]} 1... Nf6 {[%clk 0:03:00.5]} 2. c4 {[%clk 0:03:02]} 2...
g6 {[%clk 0:03:01.7]} 3. Nc3 {[%clk 0:03:02.2]} 3... Bg7 {[%clk 0:03:03.2]} 4.
e4 {[%clk 0:03:03.2]} 4... d6 {[%clk 0:03:04.7]} 5. Nf3 {[%clk 0:03:04.3]} 5...
O-O {[%clk 0:03:06.2]} 6. Be2 {[%clk 0:03:05.8]} 6... e5 {[%clk 0:03:07.2]} 7.
O-O {[%clk 0:03:06.4]} 7... exd4 {[%clk 0:03:08]} 8. Nxd4 {[%clk 0:03:06.6]}
8... Re8 {[%clk 0:03:09.6]} 9. f3 {[%clk 0:03:07.6]} 9... c6 {[%clk 0:03:11.1]}
10. Bg5 {[%clk 0:03:04.7]} 10... Qb6 {[%clk 0:03:09.8]} 11. Na4 {[%clk
0:02:54.4]} 11... Qa5 {[%clk 0:03:08.9]} 12. Be3 {[%clk 0:02:47.7]} 12... d5
{[%clk 0:03:03.3]} 13. cxd5 {[%clk 0:02:47.8]} 13... Nxd5 {[%clk 0:03:02.3]} 14.
Bf2 {[%clk 0:02:19]} 14... Nf4 {[%clk 0:03:03.1]} 15. Nc3 {[%clk 0:02:11.1]}
15... Qg5 {[%clk 0:02:59.1]} 16. Bg3 {[%clk 0:02:00.2]} 16... Rd8 {[%clk
0:02:56.8]} 0-1

[Event "*** Titled Tuesday 3|2 Blitz"]
[Site "Chess.com"]
[Date "2015.11.03"]
[Round "7"]
[White "ilmago"]
[Black "chesstatour"]
[Result "0-1"]
[WhiteElo "1902"]
[BlackElo "1933"]
[TimeControl "180+2"]
[EndTime "18:20:31 PST"]
[Termination "chesstatour won by resignation"]

1. e4 {[%clk 0:03:01.9]} 1... c6 {[%clk 0:03:00.5]} 2. d4 {[%clk 0:03:01.3]}
2... d5 {[%clk 0:03:02.4]} 3. exd5 {[%clk 0:03:02.4]} 3... cxd5 {[%clk
0:03:04.3]} 4. c4 {[%clk 0:03:02.9]} 4... Nc6 {[%clk 0:03:06.2]} 5. Nf3 {[%clk
0:03:01.7]} 5... Nf6 {[%clk 0:03:06.3]} 6. Nc3 {[%clk 0:03:01.6]} 6... Bg4
{[%clk 0:03:03.9]} 7. Qb3 {[%clk 0:02:57.9]} 7... Bxf3 {[%clk 0:03:02.4]} 8.
gxf3 {[%clk 0:02:56.9]} 8... Nxd4 {[%clk 0:02:56.1]} 9. Qxb7 {[%clk 0:02:50.9]}
9... Nxf3+ {[%clk 0:02:19.9]} 10. Ke2 {[%clk 0:02:50.8]} 10... Nd4+ {[%clk
0:02:14.1]} 11. Kd3 {[%clk 0:02:50.4]} 11... dxc4+ {[%clk 0:02:09.3]} 12. Ke3
{[%clk 0:02:35.6]} 12... e5 {[%clk 0:01:35.1]} 13. Bxc4 {[%clk 0:02:30.9]} 13...
Ng4+ {[%clk 0:01:02.2]} 14. Ke4 {[%clk 0:02:27.7]} 14... f5+ {[%clk 0:00:57.1]}
15. Kd3 {[%clk 0:02:25]} 15... Be7 {[%clk 0:00:50.4]} 16. Nd5 {[%clk 0:02:18]}
16... Nxf2+ {[%clk 0:00:40.2]} 17. Kc3 {[%clk 0:02:15]} 17... Ne4+ {[%clk
0:00:34.4]} 18. Kd3 {[%clk 0:02:08.9]} 18... Nc5+ {[%clk 0:00:33.4]} 19. Ke3
{[%clk 0:02:05.9]} 19... Nxb7 {[%clk 0:00:32.2]} 0-1

[Event "*** Titled Tuesday 3|2 Blitz"]
[Site "Chess.com"]
[Date "2015.11.03"]
[Round "7"]
[White "DeviatkinAndrey"]
[Black "bugsbunny444"]
[Result "1-0"]
[WhiteElo "2467"]
[BlackElo "2342"]
[TimeControl "180+2"]
[EndTime "18:23:11 PST"]
[Termination "DeviatkinAndrey won by resignation"]

1. e4 {[%clk 0:02:59.6]} 1... e6 {[%clk 0:03:00.6]} 2. Qe2 {[%clk 0:03:00.3]}
2... c5 {[%clk 0:03:00.8]} 3. g3 {[%clk 0:03:00.8]} 3... Nc6 {[%clk 0:03:02.2]}
4. Bg2 {[%clk 0:03:02.3]} 4... g6 {[%clk 0:02:58.7]} 5. Nf3 {[%clk 0:03:03.5]}
5... Bg7 {[%clk 0:02:59.8]} 6. O-O {[%clk 0:03:05.1]} 6... Nge7 {[%clk 0:03:01]}
7. c3 {[%clk 0:03:06.5]} 7... O-O {[%clk 0:03:01.8]} 8. Rd1 {[%clk 0:03:07.3]}
8... d5 {[%clk 0:03:00.2]} 9. e5 {[%clk 0:02:56.8]} 9... h6 {[%clk 0:03:00.6]}
10. d4 {[%clk 0:02:57]} 10... b6 {[%clk 0:02:34.2]} 11. h4 {[%clk 0:02:31.2]}
11... a5 {[%clk 0:02:34]} 12. Bf4 {[%clk 0:02:27.5]} 12... Ba6 {[%clk
0:02:28.5]} 13. Qd2 {[%clk 0:02:27.7]} 13... Kh7 {[%clk 0:02:29.2]} 14. a4
{[%clk 0:02:25.9]} 14... cxd4 {[%clk 0:02:27.3]} 15. cxd4 {[%clk 0:02:26.4]}
15... Nf5 {[%clk 0:02:25.7]} 16. Nc3 {[%clk 0:02:20.5]} 16... Nb4 {[%clk
0:02:22.5]} 17. Bf1 {[%clk 0:02:19.3]} 17... Bxf1 {[%clk 0:02:16]} 18. Rxf1
{[%clk 0:02:19.7]} 18... Rc8 {[%clk 0:02:12.2]} 19. Rac1 {[%clk 0:02:19.7]}
19... Qe7 {[%clk 0:02:06.3]} 20. Nb5 {[%clk 0:02:16.5]} 20... Rfd8 {[%clk
0:01:42.5]} 21. Kg2 {[%clk 0:02:05.4]} 21... Bf8 {[%clk 0:01:42.9]} 22. Kh3
{[%clk 0:01:45]} 22... Na2 {[%clk 0:01:25]} 23. Ra1 {[%clk 0:01:06.1]} 23... Nb4
{[%clk 0:01:21.3]} 24. Rfc1 {[%clk 0:01:06.6]} 24... Rc6 {[%clk 0:01:05.4]} 25.
g4 {[%clk 0:01:06.3]} 25... Rxc1 {[%clk 0:00:36.3]} 26. Rxc1 {[%clk 0:01:05.8]}
26... Nxh4 {[%clk 0:00:38]} 27. Nxh4 {[%clk 0:01:04.6]} 27... g5 {[%clk
0:00:39.1]} 28. Bg3 {[%clk 0:01:01.8]} 28... gxh4 {[%clk 0:00:23.8]} 29. Bxh4
{[%clk 0:01:02.7]} 29... Qe8 {[%clk 0:00:25.3]} 30. Bxd8 {[%clk 0:00:55.2]}
30... Qxd8 {[%clk 0:00:27.2]} 31. Rc7 {[%clk 0:00:50.4]} 31... Kg8 {[%clk
0:00:22.5]} 32. Qf4 {[%clk 0:00:48.9]} 32... Qe8 {[%clk 0:00:08.7]} 33. Nd6
{[%clk 0:00:49.4]} 33... Bxd6 {[%clk 0:00:04.9]} 34. exd6 {[%clk 0:00:50.2]}
34... Na6 {[%clk 0:00:04.6]} 35. d7 {[%clk 0:00:47.8]} 1-0

[Event "*** Titled Tuesday 3|2 Blitz"]
[Site "Chess.com"]
[Date "2015.11.03"]
[Round "7"]
[White "Boryboy"]
[Black "Noukii"]
[Result "1-0"]
[WhiteElo "2511"]
[BlackElo "2617"]
[TimeControl "180+2"]
[EndTime "18:23:36 PST"]
[Termination "Boryboy won by resignation"]

1. d4 {[%clk 0:02:50.5]} 1... Nf6 {[%clk 0:02:58.5]} 2. Nf3 {[%clk 0:02:49.9]}
2... d5 {[%clk 0:02:58.5]} 3. c4 {[%clk 0:02:49.3]} 3... c6 {[%clk 0:02:57.9]}
4. e3 {[%clk 0:02:46.8]} 4... Bf5 {[%clk 0:02:56.4]} 5. Nc3 {[%clk 0:02:44.9]}
5... e6 {[%clk 0:02:57.9]} 6. Nh4 {[%clk 0:02:43.5]} 6... Be4 {[%clk 0:02:59.2]}
7. f3 {[%clk 0:02:40.2]} 7... Bg6 {[%clk 0:03:00.2]} 8. Qb3 {[%clk 0:02:40.4]}
8... b5 {[%clk 0:02:48.4]} 9. cxb5 {[%clk 0:02:35.5]} 9... c5 {[%clk 0:02:49.7]}
10. Nxg6 {[%clk 0:02:32.2]} 10... hxg6 {[%clk 0:02:49.4]} 11. Be2 {[%clk
0:02:30.2]} 11... Nbd7 {[%clk 0:02:38.3]} 12. f4 {[%clk 0:02:21.9]} 12... Bd6
{[%clk 0:02:33.9]} 13. g3 {[%clk 0:02:02.3]} 13... g5 {[%clk 0:02:31.5]} 14.
fxg5 {[%clk 0:01:54]} 14... Bxg3+ {[%clk 0:02:32]} 15. Kd1 {[%clk 0:01:54.5]}
15... Ng8 {[%clk 0:01:50.9]} 16. g6 {[%clk 0:01:32.3]} 16... Ngf6 {[%clk
0:00:59.8]} 17. Bd2 {[%clk 0:01:26.2]} 17... Rc8 {[%clk 0:00:42.4]} 18. Kc2
{[%clk 0:01:20.4]} 18... Bd6 {[%clk 0:00:39.1]} 19. Raf1 {[%clk 0:01:15]} 19...
Rh4 {[%clk 0:00:32]} 20. Kb1 {[%clk 0:01:10.8]} 20... cxd4 {[%clk 0:00:29]} 21.
gxf7+ {[%clk 0:01:03.4]} 21... Kxf7 {[%clk 0:00:28.2]} 22. exd4 {[%clk
0:01:01.4]} 22... Rxd4 {[%clk 0:00:30.1]} 23. Qc2 {[%clk 0:00:51.8]} 23... Kg8
{[%clk 0:00:17.7]} 24. Bg5 {[%clk 0:00:41]} 24... Rb4 {[%clk 0:00:17.8]} 25. a3
{[%clk 0:00:39.2]} 25... Rd4 {[%clk 0:00:14.9]} 26. Rhg1 {[%clk 0:00:40.1]}
26... Qe7 {[%clk 0:00:13.3]} 27. Nxd5 {[%clk 0:00:29.8]} 27... Rxc2 {[%clk
0:00:08.3]} 28. Nxe7+ {[%clk 0:00:29.8]} 28... Bxe7 {[%clk 0:00:10.2]} 29. Kxc2
{[%clk 0:00:30.5]} 29... Kf7 {[%clk 0:00:11.7]} 30. Rd1 {[%clk 0:00:30.1]} 30...
Re4 {[%clk 0:00:11.6]} 31. Bd3 {[%clk 0:00:30.5]} 31... Re5 {[%clk 0:00:13.2]}
32. Bf4 {[%clk 0:00:29.3]} 32... Rc5+ {[%clk 0:00:12.9]} 33. Kb1 {[%clk
0:00:29.9]} 33... Nd5 {[%clk 0:00:14.8]} 34. Bg3 {[%clk 0:00:29]} 34... Bf6
{[%clk 0:00:15.9]} 35. Rc1 {[%clk 0:00:28.1]} 35... Ke7 {[%clk 0:00:17.2]} 36.
Rxc5 {[%clk 0:00:26.4]} 36... Nxc5 {[%clk 0:00:19.1]} 37. Bc2 {[%clk 0:00:24]}
37... Ne3 {[%clk 0:00:18.9]} 38. Bf2 {[%clk 0:00:23.8]} 1-0

[Event "*** Titled Tuesday 3|2 Blitz"]
[Site "Chess.com"]
[Date "2015.11.03"]
[Round "7"]
[White "Shivagami"]
[Black "Penguininja"]
[Result "0-1"]
[WhiteElo "1778"]
[BlackElo "2160"]
[TimeControl "180+2"]
[EndTime "18:23:38 PST"]
[Termination "Penguininja won by resignation"]

1. Nc3 {[%clk 0:03:01.9]} 1... Nf6 {[%clk 0:02:58.5]} 2. d4 {[%clk 0:03:01.3]}
2... d5 {[%clk 0:02:59.7]} 3. Bg5 {[%clk 0:03:01.3]} 3... Nbd7 {[%clk
0:03:00.7]} 4. Nf3 {[%clk 0:03:00.8]} 4... e6 {[%clk 0:02:56.6]} 5. e4 {[%clk
0:03:01.5]} 5... dxe4 {[%clk 0:02:53.5]} 6. Nxe4 {[%clk 0:03:03]} 6... Be7
{[%clk 0:02:54.4]} 7. Nxf6+ {[%clk 0:03:03]} 7... Bxf6 {[%clk 0:02:56.3]} 8. Bf4
{[%clk 0:03:02.9]} 8... O-O {[%clk 0:02:55.8]} 9. Bd3 {[%clk 0:03:02.5]} 9... c5
{[%clk 0:02:56.8]} 10. c3 {[%clk 0:02:58.5]} 10... b6 {[%clk 0:02:53.7]} 11. Be4
{[%clk 0:02:57.6]} 11... Ba6 {[%clk 0:02:48.8]} 12. Bxa8 {[%clk 0:02:58.4]}
12... Qxa8 {[%clk 0:02:50.7]} 13. Qd2 {[%clk 0:02:57.1]} 13... cxd4 {[%clk
0:02:40.2]} 14. Nxd4 {[%clk 0:02:48.1]} 14... e5 {[%clk 0:02:23.5]} 15. Nf3
{[%clk 0:02:42.9]} 15... exf4 {[%clk 0:02:10.2]} 16. Qxd7 {[%clk 0:02:41.6]}
16... Qe4+ {[%clk 0:02:07.2]} 17. Kd2 {[%clk 0:02:34.3]} 17... Rd8 {[%clk
0:02:04.8]} 18. Qxd8+ {[%clk 0:02:35.4]} 18... Bxd8 {[%clk 0:02:06.7]} 19. Rae1
{[%clk 0:02:32.2]} 19... Qd5+ {[%clk 0:01:46.3]} 20. Kc1 {[%clk 0:02:32.4]}
20... Qc6 {[%clk 0:01:05.4]} 21. Nd4 {[%clk 0:02:28.1]} 21... Qd7 {[%clk
0:01:03.6]} 22. Rd1 {[%clk 0:02:23.4]} 22... g6 {[%clk 0:01:04.6]} 23. Rhe1
{[%clk 0:02:18]} 23... Bf6 {[%clk 0:00:58.3]} 24. Re4 {[%clk 0:01:51]} 24... Kg7
{[%clk 0:00:47]} 25. Ne6+ {[%clk 0:01:49.3]} 25... Qxe6 {[%clk 0:00:30.8]} 26.
Rxe6 {[%clk 0:01:49.8]} 26... fxe6 {[%clk 0:00:32.7]} 27. Rd7+ {[%clk 0:01:51]}
27... Kh6 {[%clk 0:00:31.4]} 28. Rxa7 {[%clk 0:01:52.3]} 28... Bc4 {[%clk
0:00:31.5]} 29. b3 {[%clk 0:01:49.6]} 29... Bd5 {[%clk 0:00:30.2]} 30. f3 {[%clk
0:01:32.3]} 30... Bxc3 {[%clk 0:00:29.5]} 31. Kc2 {[%clk 0:01:32.6]} 31... Bd4
{[%clk 0:00:28]} 32. Kd3 {[%clk 0:01:31]} 32... Bg1 {[%clk 0:00:22.3]} 33. Ra6
{[%clk 0:01:26.3]} 33... Kg5 {[%clk 0:00:19.1]} 34. g3 {[%clk 0:01:21]} 34...
Bxf3 {[%clk 0:00:18.6]} 35. h4+ {[%clk 0:01:18.6]} 35... Kg4 {[%clk 0:00:18.4]}
36. gxf4 {[%clk 0:01:18]} 36... Kxf4 {[%clk 0:00:19.1]} 37. Ra7 {[%clk 0:01:18]}
37... e5 {[%clk 0:00:18.6]} 38. Rxh7 {[%clk 0:01:16]} 38... e4+ {[%clk
0:00:19.2]} 39. Kd2 {[%clk 0:01:16.3]} 39... e3+ {[%clk 0:00:20.6]} 40. Kd3
{[%clk 0:01:16]} 40... e2 {[%clk 0:00:20.9]} 41. Re7 {[%clk 0:01:17.4]} 41...
Bf2 {[%clk 0:00:20.1]} 42. Kd2 {[%clk 0:01:07.9]} 42... Bxh4 {[%clk 0:00:19.4]}
43. Rf7+ {[%clk 0:01:07.8]} 43... Kg3 {[%clk 0:00:20.3]} 44. Rg7 {[%clk
0:01:06.8]} 44... Kf2 {[%clk 0:00:19.2]} 45. Re7 {[%clk 0:01:05.9]} 45... Bxe7
{[%clk 0:00:19.6]} 46. a4 {[%clk 0:01:03.8]} 46... e1=Q+ {[%clk 0:00:18.2]} 0-1